bitfinex/quotes_ETHUSD_20240618
["timestamp","ask_amount","ask_price","bid_price","bid_amount"]
[1718713815901,2.4387,3415.9,3412.2,2.93064]
[1718713816103,100.0,3421.9,3413.0,2.92995]
[1718713816104,1.174059,3415.4,3413.0,2.92995]
[1718713816304,1.74589461,3423.7,3412.3,3.0]
[1718713816305,1.44186559,3418.6,3414.4,2.92874]
[1718713816610,1.44186559,3418.6,3413.3,2.9297]
[1718713816611,1.74589461,3424.7,3413.1,8.79]
[1718713816612,2.3875,3422.2,3416.2,2.4398]
[1718713816906,1.6691353,3422.1,3419.1,2.92466]
[1718713817109,1.6691353,3422.1,3419.1,5.80466]
[1718713817311,0.148,3422.6,3419.1,2.92466]
[1718713817702,2.92,3421.6,3418.3,2.92539]
[1718713817936,2.92,3421.6,3417.5,2.4624]
[1718713818114,3.0,3421.4,3417.5,2.4624]
[1718713818315,3.0,3421.4,3418.5,3.584]
[1718713818516,0.6048,3422.6,3417.5,5.4624]
[1718713818517,0.6048,3422.6,3419.3,2.91]
[1718713818832,0.75,3424.5,3420.1,2.88]
[1718713819016,3.0,3424.7,3420.1,2.88]
[1718713819017,1.171059,3424.7,3420.6,0.75]
[1718713819224,1.171059,3424.7,3422.1,0.75]
[1718713819442,1.48850202,3425.7,3420.4,4.134]
[1718713819663,2.3189,3424.0,3420.2,0.75]
[1718713819804,2.3189,3424.0,3418.4,5.21707]
[1718713819805,2.92,3422.8,3418.7,0.75]
[1718713820012,0.75,3423.6,3418.0,1.773]
[1718713820013,2.92,3421.7,3418.0,0.75]
[1718713820209,2.3539,3422.6,3417.6,0.75]
[1718713820210,2.1824101,3422.1,3417.6,0.75]
[1718713820550,2.1824101,3422.1,3417.1,9.924]
[1718713820551,1.46149389,3421.9,3417.1,9.924]
[1718713820849,1.19142958,3422.0,3417.1,9.924]
[1718713820850,0.3887655,3421.8,3418.6,2.88]
[1718713821051,0.292,3422.7,3419.4,0.75]
[1718713821338,1.48900796,3424.1,3419.4,3.63]
[1718713821553,0.23539,3423.8,3419.5,4.134]
[1718713821758,0.23539,3423.8,3419.3,0.75]
[1718713821759,3.691,3423.3,3419.3,0.75]
[1718713822049,1.4361833,3423.7,3419.0,2.302]
[1718713822050,0.75,3423.7,3419.0,2.302]
[1718713822219,3.691,3422.9,3419.0,2.302]
[1718713822415,0.3691,3422.8,3419.1,0.2302]
[1718713822619,1.86650459,3422.8,3419.1,0.2302]
[1718713822803,1.86650459,3422.8,3418.4,0.75]
[1718713822804,3.86156512,3422.7,3418.4,0.75]
[1718713823001,3.86156512,3422.7,3417.8,2.2761]
[1718713823002,3.691,3421.5,3417.8,2.2761]
[1718713823206,3.691,3420.6,3416.3,0.99398]
[1718713823454,2.92,3420.9,3415.8,2.3971]
[1718713823455,0.75,3420.7,3415.8,2.3971]
[1718713823616,3.0,3419.8,3415.9,0.31471]
[1718713823816,0.89393,3420.6,3415.9,1.06471]
[1718713824019,0.89393,3420.6,3416.5,0.75]
[1718713824020,0.55,3420.5,3416.5,0.75]
[1718713824206,3.691,3421.7,3417.0,0.75]
[1718713824412,3.0,3422.6,3418.8,2.317]
[1718713824716,2.3934,3425.7,3418.8,2.317]
[1718713824717,3.0,3423.4,3419.3,0.75]
[1718713824920,1.47932316,3423.0,3418.9,0.5197]
[1718713825232,2.4532,3423.2,3417.4,3.691]
[1718713825233,4.44773873,3421.4,3417.4,2.3007]
[1718713825418,3.0,3422.0,3417.5,0.23007]
[1718713825619,2.98,3422.7,3418.2,0.75]
[1718713825620,1.44656512,3422.7,3418.2,0.75]
[1718713825932,0.75,3420.4,3418.3,0.06767261]
[1718713826135,0.31423,3420.3,3418.3,0.06767261]
[1718713826309,0.75,3421.1,3418.3,0.06767261]
[1718713826310,3.691,3421.1,3418.3,0.06767261]
[1718713826512,2.3935,3422.2,3418.4,2.3526]
[1718713826734,2.3935,3422.2,3418.3,0.06767261]
[1718713826735,3.691,3421.8,3418.3,0.06767261]
[1718713827235,1.47059431,3422.0,3418.3,1.23950461]
[1718713827437,3.0,3421.3,3418.3,1.23950461]
[1718713827742,3.691,3420.9,3418.3,1.23950461]
[1718713827947,3.0,3419.9,3418.3,1.23950461]
[1718713828112,3.0,3419.9,3414.1,2.92897]
[1718713828113,3.0,3418.5,3414.2,2.3782]
[1718713828311,0.75,3419.0,3414.6,0.06774594]
[1718713828312,5.15042331,3418.2,3414.6,0.06774594]
[1718713828508,4.99019348,3418.1,3416.0,1.172872]
[1718713828733,4.99019348,3418.1,3414.2,2.3782]
[1718713828734,3.0,3417.5,3414.2,2.3782]
[1718713828950,3.0,3417.5,3412.0,3.691]
[1718713828951,3.691,3416.4,3412.1,2.471]
[1718713829163,3.0,3416.3,3413.5,1.173408]
[1718713829371,0.3,3416.2,3413.5,1.173408]
[1718713829512,0.3,3416.2,3412.2,0.06779359]
[1718713829513,0.55,3416.1,3412.2,0.81779359]
[1718713829721,0.55,3416.1,3412.2,0.06779359]
[1718713830016,0.385,3416.0,3412.6,0.75]
[1718713830220,0.385,3416.0,3412.3,0.29078936]
[1718713830525,1.45291217,3415.8,3412.3,0.29078936]
[1718713830712,1.83044632,3415.9,3412.2,0.06779359]
[1718713830713,1.45222318,3415.2,3412.2,0.06779359]
[1718713830911,0.75,3415.4,3412.2,0.06779359]
[1718713830912,1.16144632,3415.1,3412.2,0.06779359]
[1718713831113,1.43372272,3414.5,3411.4,1.174133]
[1718713831451,1.43372272,3414.5,3410.8,2.2922]
[1718713831452,0.51247227,3414.4,3410.8,2.2922]
[1718713831637,1.06247227,3414.4,3410.8,3.466537]
[1718713831855,1.47972897,3414.3,3410.8,3.466537]
[1718713832012,1.47972897,3414.3,3409.1,0.75]
[1718713832013,3.0,3413.5,3409.1,2.4663]
[1718713832212,1.45330419,3413.4,3409.2,0.06785325]
[1718713832452,1.07280839,3413.3,3409.3,0.25341533]
[1718713832622,2.02472981,3413.3,3409.3,0.25341533]
[1718713832823,0.55,3413.3,3409.3,0.25341533]
[1718713833023,0.55,3413.3,3409.4,0.75]
[1718713833259,3.0,3413.6,3409.6,3.63]
[1718713833420,0.55,3413.5,3409.6,2.88]
[1718713833760,0.55,3413.5,3409.7,0.30978139]
[1718713833761,3.0,3413.2,3409.7,0.30978139]
[1718713833924,3.0,3413.2,3409.3,0.25341533]
[1718713833925,0.55,3413.1,3409.3,0.25341533]
[1718713834124,3.55,3413.1,3409.3,0.25341533]
[1718713834339,0.355,3413.0,3409.3,0.25341533]
[1718713834526,3.355,3413.0,3409.3,0.25341533]
[1718713834755,3.355,3413.0,3409.5,0.75]
[1718713834756,0.355,3413.0,3409.5,0.75]
[1718713835065,0.19977762,3413.4,3410.2,0.75]
[1718713835220,0.19977762,3413.4,3409.3,3.18650533]
[1718713835221,0.55422012,3414.2,3410.3,2.3911]
[1718713835226,3.55422012,3414.2,3410.3,2.3911]
[1718713835424,3.691,3415.3,3410.9,0.75]
[1718713835624,3.691,3415.3,3410.8,2.93178]
[1718713835625,3.691,3415.3,3411.2,0.75]
[1718713835841,0.59493,3415.2,3411.3,0.55]
[1718713836043,3.0,3415.1,3411.1,0.55]
[1718713836243,0.75,3414.8,3410.5,0.65251]
[1718713836449,3.0,3415.0,3410.5,2.93206]
[1718713836754,0.428593,3415.1,3411.7,1.773]
[1718713836960,3.691,3416.2,3411.5,4.134]
[1718713837130,3.691,3416.2,3411.7,2.93107]
[1718713837131,0.3691,3416.1,3411.7,2.93107]
[1718713837332,0.3691,3416.1,3411.9,1.773]
[1718713837645,0.3691,3416.1,3412.0,2.323]
[1718713837821,1.43424277,3416.0,3412.0,0.55]
[1718713838015,3.0,3415.4,3411.6,0.64804]
[1718713838241,3.0,3415.4,3411.4,2.3464]
[1718713838242,0.40601,3416.0,3411.4,3.0964]
[1718713838440,3.109,3415.8,3411.5,0.30964]
[1718713838616,3.0,3415.3,3411.4,2.3464]
[1718713838825,3.0,3414.9,3411.4,2.3464]
[1718713839059,3.0,3414.9,3409.2,14.49101445]
[1718713839060,3.0,3414.1,3409.3,2.2524]
[1718713839223,3.0,3414.5,3409.7,0.75]
[1718713839419,3.0,3414.3,3409.8,2.141289]
[1718713839624,3.0,3414.3,3409.3,2.2524]
[1718713839625,3.55,3414.2,3409.3,2.2524]
[1718713839845,3.0,3413.9,3409.3,2.2524]
[1718713840019,3.55,3413.8,3409.3,2.2524]
[1718713840220,3.691,3413.6,3409.4,0.342721]
[1718713840416,3.55,3413.5,3409.5,1.773]
[1718713840652,0.7241,3413.4,3409.6,0.4368121]
[1718713840854,3.659,3413.3,3409.6,0.4368121]
[1718713841054,3.659,3413.3,3409.3,2.2524]
[1718713841055,3.691,3412.7,3409.3,2.2524]
[1718713841255,3.0,3413.1,3409.3,2.2524]
[1718713841469,3.0,3413.2,3409.3,2.2524]
[1718713841470,0.55,3413.0,3409.3,2.2524]
[1718713841766,0.355,3412.9,3409.4,0.3427256]
[1718713841930,0.55,3413.0,3409.5,1.773]
[1718713842257,0.55,3413.3,3409.4,0.3427256]
[1718713842465,0.55,3413.3,3409.6,1.773]
[1718713842629,1.99777623,3413.6,3409.5,0.25951256]
[1718713842834,3.859,3413.2,3409.5,0.25951256]
[1718713843031,3.109,3412.8,3409.5,0.25951256]
[1718713843268,3.0,3412.9,3409.3,2.2524]
[1718713843452,0.55,3412.8,3409.3,2.2524]
[1718713843969,3.0,3412.8,3409.3,2.2524]
[1718713845382,3.0,3412.3,3408.3,2.3771]
[1718713845534,3.6,3412.2,3408.4,0.23771]
[1718713845932,0.55,3412.1,3408.4,0.23771]
[1718713846547,3.55,3412.1,3408.4,0.23771]
[1718713846765,3.55,3412.1,3408.5,1.17511]
[1718713846967,0.415,3412.0,3408.6,0.556292]
[1718713847151,0.55,3411.9,3408.6,0.556292]
[1718713847338,0.55,3412.1,3408.6,0.556292]
[1718713847541,0.55,3412.1,3408.4,3.23771]
[1718713847743,3.109,3412.0,3408.4,3.23771]
[1718713847976,3.55,3411.9,3408.4,0.23771]
[1718713848270,3.55,3411.9,3408.5,0.378997]
[1718713848271,0.9659,3411.8,3408.5,0.378997]
[1718713848473,0.55,3411.7,3408.3,2.3771]
[1718713849360,3.41562989,3412.4,3408.4,2.2976]
[1718713849361,0.30662989,3412.4,3408.4,2.2976]
[1718713849550,3.691,3413.5,3409.0,2.2976]
[1718713849754,3.691,3414.4,3409.6,5.632]
[1718713850074,0.40046872,3414.8,3410.3,7.1796]
[1718713850075,0.30667,3413.2,3410.3,7.1796]
[1718713850245,1.174275,3415.7,3411.8,2.3924]
[1718713850455,0.75,3416.6,3411.9,0.55]
[1718713850456,3.0,3416.3,3411.9,0.55]
[1718713850673,0.30648161,3415.6,3411.9,5.56224]
[1718713850861,0.30648161,3415.6,3411.9,8.67124]
[1718713851066,3.0,3416.3,3412.0,1.106364]
[1718713851293,0.30649078,3415.6,3412.0,1.106364]
[1718713851462,0.30649078,3415.6,3412.1,0.55]
[1718713851663,1.49543301,3416.2,3412.1,0.55]
[1718713851979,0.3064945,3415.5,3412.2,0.4656364]
[1718713852284,5.71536384,3416.1,3412.4,2.398]
[1718713852285,1.173921,3416.1,3412.4,2.398]
[1718713852459,3.691,3417.2,3412.5,0.55]
[1718713852460,3.74202868,3417.2,3412.5,0.55]
[1718713852651,0.30641528,3416.3,3412.5,3.55]
[1718713852852,0.30641528,3416.3,3412.5,0.55]
[1718713853055,1.44370084,3416.7,3412.5,0.55]
[1718713853291,0.30629044,3416.3,3412.6,0.2948]
[1718713853609,0.30629044,3416.3,3412.7,0.55]
[1718713853812,0.9813,3416.6,3412.7,2.323]
[1718713853813,0.54250008,3416.5,3412.7,2.323]
[1718713854097,0.54250008,3416.5,3412.7,5.323]
[1718713854308,0.54250008,3416.5,3412.9,4.882]
[1718713854452,0.30642095,3416.8,3413.5,1.773]
[1718713854659,3.0,3417.5,3413.6,0.55]
[1718713854929,3.691,3417.2,3413.6,0.55]
[1718713855056,3.691,3417.2,3413.4,0.55]
[1718713855257,3.30626732,3417.5,3413.4,0.55]
[1718713855509,0.44796843,3417.4,3413.5,0.29274]
[1718713855693,4.58261511,3417.8,3413.7,1.773]
[1718713855856,3.691,3417.8,3413.7,1.773]
[1718713856053,3.691,3417.8,3413.9,1.773]
[1718713856054,3.99732696,3417.8,3413.9,1.773]
[1718713856253,3.99732696,3417.8,3413.8,0.55]
[1718713856254,4.5994888,3417.7,3414.0,0.55]
[1718713856488,4.5994888,3417.7,3413.8,0.55]
[1718713856489,5.1165454,3417.7,3413.8,0.55]
[1718713856653,3.75,3417.6,3413.6,0.55]
[1718713856854,3.109,3417.2,3413.5,0.29274]
[1718713857091,4.51793473,3417.2,3413.5,0.29274]
[1718713857289,4.51793473,3417.2,3413.3,2.3774]
[1718713857290,5.13470084,3416.7,3413.3,2.3774]
[1718713857469,3.4044,3415.7,3413.3,2.3774]
[1718713857671,3.2954,3415.6,3413.3,2.3774]
[1718713857930,3.0,3415.6,3413.3,2.3774]
[1718713858059,3.109,3415.4,3413.3,2.3774]
[1718713858264,3.0,3416.6,3413.3,2.3774]
[1718713858460,0.2954,3416.5,3413.3,2.3774]
[1718713858692,3.0,3416.6,3413.4,3.34674]
[1718713858693,0.69864,3416.4,3413.4,3.34674]
[1718713858892,3.109,3416.3,3413.4,3.34674]
[1718713859202,0.69864,3416.4,3413.4,3.34674]
[1718713859203,3.109,3416.1,3413.4,0.23774]
[1718713859423,3.109,3416.1,3413.3,2.3774]
[1718713859688,6.109,3416.0,3413.3,2.3774]
[1718713859904,3.109,3416.0,3413.3,2.3774]
[1718713860061,6.8,3415.8,3412.3,2.3739]
[1718713860256,6.109,3414.8,3412.3,2.3739]
[1718713860504,3.691,3414.9,3412.3,2.3739]
[1718713860505,3.109,3414.6,3412.3,2.3739]
[1718713860880,3.8454,3414.7,3412.3,2.3739]
[1718713860881,3.109,3414.4,3412.3,2.3739]
[1718713861188,3.0,3414.3,3412.3,2.3739]
[1718713861367,3.0,3414.7,3412.4,0.23739]
[1718713861574,3.0,3414.7,3412.3,2.3739]
[1718713861575,3.2954,3414.7,3412.3,2.3739]
[1718713861787,3.109,3414.5,3411.3,2.3951]
[1718713861984,0.55,3414.6,3411.4,0.55041]
[1718713861985,6.109,3414.3,3411.4,0.55041]
[1718713862193,6.109,3414.3,3411.3,2.3951]
[1718713862194,3.109,3414.1,3411.3,2.3951]
[1718713862360,3.0,3414.0,3411.3,2.3951]
[1718713862564,0.2954,3413.9,3411.3,2.3951]
[1718713862759,1.39809644,3413.8,3411.3,2.3951]
[1718713862991,0.84809644,3413.8,3411.3,2.3951]
[1718713863372,5.16540542,3415.0,3411.3,5.5041]
[1718713863373,3.0,3414.3,3411.3,5.5041]
[1718713863703,0.2954,3414.2,3411.3,2.3951]
[1718713863918,3.109,3414.1,3411.3,2.3951]
[1718713864074,0.2954,3414.2,3411.4,0.55]
[1718713864075,3.109,3413.9,3411.4,0.55]
[1718713864394,3.109,3413.9,3411.3,2.3951]
[1718713864395,3.109,3413.7,3411.3,2.3951]
[1718713864600,3.109,3413.3,3411.3,2.3951]
[1718713864962,3.0,3413.2,3411.3,5.5041]
[1718713865163,3.79257515,3415.4,3411.3,5.5041]
[1718713865164,3.691,3415.9,3411.4,3.65941]
[1718713865464,3.0,3415.9,3411.8,3.109]
[1718713865669,3.0,3415.4,3411.9,0.55917]
[1718713865867,3.109,3415.2,3411.8,3.109]
[1718713866099,3.0,3415.4,3411.9,0.55]
[1718713866100,3.109,3415.0,3411.9,0.55]
[1718713866264,3.109,3415.0,3411.8,0.55]
[1718713866669,0.64044,3415.1,3411.8,0.55]
[1718713866967,3.0,3414.5,3411.7,2.4827]
[1718713867278,6.109,3414.4,3411.7,2.4827]
[1718713867483,3.109,3414.0,3411.7,2.4827]
[1718713867691,3.109,3413.6,3409.6,2.4388]
[1718713867994,3.6109,3413.9,3409.7,4.882]
[1718713868177,3.6109,3413.9,3409.5,2.93296]
[1718713868178,0.9509005,3413.8,3409.9,4.882]
[1718713868501,0.9509005,3413.8,3410.7,3.109]
[1718713868669,0.2954,3414.5,3410.7,3.109]
[1718713868872,0.2954,3414.5,3410.7,4.882]
[1718713869068,3.4044,3414.1,3410.7,3.109]
[1718713869271,3.34044,3414.0,3410.9,3.109]
[1718713869505,3.0,3414.8,3411.3,3.109]
[1718713869732,0.30656429,3415.1,3411.7,3.109]
[1718713869886,4.441,3416.4,3411.4,3.55]
[1718713869887,3.0,3416.1,3412.0,1.773]
[1718713870071,3.109,3416.0,3412.5,4.882]
[1718713870270,3.109,3416.0,3412.4,2.3885]
[1718713870271,3.109,3416.0,3412.6,6.109]
[1718713870498,3.109,3416.0,3412.4,2.3885]
[1718713870499,3.109,3416.0,3412.8,3.109]
[1718713870680,3.109,3416.0,3412.7,0.55]
[1718713870681,0.2954,3415.7,3412.9,0.55]
[1718713870894,0.3064481,3416.2,3412.7,0.55]
[1718713871212,3.109,3415.4,3412.5,0.23885]
[1718713871502,3.46743981,3416.1,3412.5,0.23885]
[1718713871710,0.41743981,3416.1,3412.5,0.23885]
[1718713871879,0.41743981,3416.1,3412.6,0.262735]
[1718713872080,3.109,3416.0,3412.6,0.262735]
[1718713872471,0.41743981,3416.1,3412.8,3.109]
[1718713872472,6.109,3415.9,3412.8,3.109]
[1718713872672,3.109,3415.5,3412.9,0.55]
[1718713872877,3.109,3415.5,3412.4,2.3885]
[1718713872878,3.109,3415.3,3412.4,2.3885]
[1718713873280,8.172247,3415.5,3412.4,2.3885]
[1718713873281,3.109,3415.0,3412.4,2.3885]
[1718713873480,3.691,3415.5,3412.4,2.3885]
[1718713873481,3.109,3414.6,3412.4,2.3885]
[1718713873684,3.109,3414.6,3409.7,0.75]
[1718713873685,0.146,3412.4,3411.5,2.3229]
[1718713875221,0.146,3412.4,3410.4,2.3382]
[1718713875984,3.109,3412.2,3410.4,2.3382]
[1718713876189,0.146,3412.4,3408.5,2.44]
[1718713876190,3.4345,3412.1,3408.5,2.44]
[1718713876396,3.109,3412.1,3408.6,3.17686519]
[1718713876581,3.109,3411.9,3408.7,0.0678632]
[1718713876790,3.109,3411.5,3408.7,0.62954972]
[1718713876987,3.109,3411.5,3408.7,0.0678632]
[1718713877320,3.0,3411.4,3408.5,2.44]
[1718713877478,1.48677175,3412.2,3408.6,0.244]
[1718713877683,0.2954,3411.8,3408.6,0.244]
[1718713877992,2.68229696,3412.1,3408.6,0.244]
[1718713877993,3.109,3412.0,3408.6,0.244]
[1718713878192,7.12590687,3412.0,3408.7,0.2684]
[1718713878393,3.109,3411.8,3408.7,0.2684]
[1718713878708,3.109,3411.4,3408.7,0.2684]
[1718713879017,0.55,3411.9,3408.7,0.2684]
[1718713879231,3.109,3411.2,3408.7,0.2684]
[1718713879538,3.0,3411.3,3408.5,2.44]
[1718713879539,6.109,3411.0,3408.5,2.44]
[1718713879680,3.109,3411.0,3408.5,2.44]
[1718713879884,3.0,3410.9,3408.5,2.44]
[1718713880086,3.464,3410.8,3408.6,0.244]
[1718713880314,3.0,3411.2,3408.6,0.244]
[1718713880530,3.0,3411.7,3408.6,0.244]
[1718713880687,0.06810766,3411.6,3408.7,0.2684]
[1718713880884,0.06810766,3411.6,3409.1,3.109]
[1718713881113,0.06810766,3411.6,3409.5,3.109]
[1718713881531,0.06810766,3411.6,3409.6,0.55]
[1718713881687,0.06810766,3411.6,3409.5,0.55]
[1718713882019,0.06810766,3411.6,3409.6,0.05864341]
[1718713882224,0.06810766,3411.6,3409.7,0.55]
[1718713882559,0.06810766,3411.6,3409.4,2.2973]
[1718713882817,0.06810766,3411.6,3409.5,0.05864827]
[1718713883033,0.06810766,3411.6,3409.4,2.2973]
[1718713883193,3.17710766,3411.6,3409.4,2.1513]
[1718713883389,3.109,3411.4,3409.4,2.1513]
[1718713883788,3.109,3411.4,3408.7,0.2684]
[1718713883789,3.109,3411.2,3407.2,1.175469]
[1718713884099,3.109,3411.0,3407.2,1.175469]
[1718713884621,3.0,3410.9,3407.3,3.109]
[1718713884785,6.109,3411.0,3407.3,3.109]
[1718713884992,6.54603,3411.0,3407.5,3.109]
[1718713885247,6.54603,3411.0,3407.6,0.0586559]
[1718713885430,3.109,3410.8,3407.7,0.36256428]
[1718713885632,0.2954,3410.5,3407.7,0.36256428]
[1718713885829,3.109,3410.6,3406.7,1.175656]
[1718713885830,3.109,3410.0,3406.7,1.175656]
[1718713886036,3.109,3409.8,3406.7,1.175656]
[1718713886328,3.109,3409.8,3405.6,2.2934]
[1718713886564,0.3109,3409.9,3405.8,3.0434]
[1718713886710,3.0,3409.7,3406.3,3.109]
[1718713886905,4.07756,3410.2,3406.5,3.109]
[1718713887109,3.0,3410.1,3406.8,3.109]
[1718713887359,3.0,3410.5,3407.1,3.109]
[1718713887558,3.109,3410.9,3407.5,3.109]
[1718713887851,0.43703,3411.0,3407.5,3.109]
[1718713887852,0.43703,3411.0,3407.6,0.05865597]
[1718713888018,0.43703,3411.0,3408.0,3.109]
[1718713888210,3.691,3412.4,3408.2,3.109]
[1718713888211,3.0,3412.3,3408.2,3.109]
[1718713888432,3.691,3412.4,3408.3,0.55]
[1718713888433,3.0,3411.9,3408.3,0.55]
[1718713888621,3.691,3412.4,3408.4,0.05865389]
[1718713888622,3.0,3412.3,3408.4,0.05865389]
[1718713888821,0.30019843,3411.6,3408.7,2.4184]
[1718713889049,3.0,3411.9,3408.8,0.55]
[1718713889265,0.3,3411.8,3408.9,0.29684]
[1718713889566,1.48677175,3412.2,3409.0,0.55]
[1718713889567,0.30645221,3412.2,3409.0,0.55]
[1718713889866,4.10414522,3412.1,3409.1,0.44919644]
[1718713890012,3.80874522,3412.1,3409.2,0.55]
[1718713890546,3.80874522,3412.1,3409.0,0.55]
[1718713890749,0.2954,3411.8,3409.1,0.384684]
[1718713891064,3.109,3410.9,3406.7,2.3972]
[1718713891211,3.109,3410.9,3406.8,0.05866617]
[1718713891409,5.3934,3411.1,3407.0,2.6926]
[1718713891410,3.109,3410.7,3407.0,2.6926]
[1718713891639,0.06810766,3410.6,3407.5,3.109]
[1718713891811,0.06810766,3410.6,3407.3,2.3783]
[1718713891812,0.06810766,3410.6,3407.7,3.109]
[1718713892012,0.06810766,3410.6,3408.0,3.109]
[1718713892261,0.45994243,3410.6,3408.1,0.55459512]
[1718713892423,0.45994243,3410.6,3407.9,2.3783]
[1718713892424,0.06810766,3410.6,3407.9,2.3783]
[1718713892952,3.06810766,3410.6,3408.0,3.16766327]
[1718713893152,3.0,3410.5,3408.1,0.55459633]
[1718713893457,3.0,3410.5,3407.9,2.3783]
[1718713893458,3.0,3410.5,3408.2,0.05866036]
[1718713893669,0.06810766,3410.6,3408.5,3.109]
[1718713893882,0.06810766,3410.6,3408.3,2.4014]
[1718713893883,0.06810766,3410.6,3408.8,3.109]
[1718713894162,0.06810766,3410.6,3409.2,3.109]
[1718713894369,0.06810766,3410.6,3409.3,0.05862452]
[1718713894517,0.06810766,3410.6,3409.4,3.659]
[1718713894717,3.547,3413.1,3409.4,3.659]
[1718713894718,3.547,3413.1,3409.6,9.23]
[1718713895063,3.547,3413.1,3409.8,6.04172]
[1718713895286,3.547,3413.1,3410.0,3.109]
[1718713895415,3.547,3413.1,3409.9,3.3540139]
[1718713895416,0.6656,3413.0,3410.2,3.109]
[1718713895621,3.109,3413.7,3410.4,3.109]
[1718713895871,3.109,3413.0,3410.5,0.37176139]
[1718713896180,3.109,3413.0,3410.6,0.55]
[1718713896319,3.109,3412.1,3409.6,2.2786]
[1718713896519,3.109,3412.1,3409.7,0.22786]
[1718713896983,3.547,3412.2,3409.7,0.22786]
[1718713896984,3.109,3411.5,3409.7,0.22786]
[1718713897119,3.547,3412.2,3409.8,0.05864348]
[1718713897120,3.109,3411.9,3409.8,0.05864348]
[1718713897315,5.3271,3412.3,3408.7,2.4268]
[1718713897316,3.109,3411.5,3408.7,2.4268]
[1718713897519,3.4199,3411.4,3408.8,0.27377]
[1718713897760,6.4199,3411.4,3408.8,0.27377]
[1718713898063,3.547,3410.9,3408.9,0.05866123]
[1718713898364,3.109,3410.8,3408.0,0.05866313]
[1718713898536,3.0,3410.7,3408.0,0.29291313]
[1718713898733,3.0,3410.7,3408.0,0.23425]
[1718713898932,0.69017,3410.6,3408.2,3.109]
[1718713899135,3.3547,3410.8,3408.3,0.05865485]
[1718713899465,3.3547,3410.8,3408.4,0.05865985]
[1718713899638,0.69017,3410.7,3408.4,0.05865985]
[1718713900034,0.69017,3410.7,3408.5,0.55]
[1718713900229,0.69017,3410.7,3408.1,0.257675]
[1718713900442,3.79917,3410.7,3408.1,0.257675]
[1718713900639,4.11608944,3410.6,3408.2,0.05865991]
[1718713900841,1.11608944,3410.6,3408.3,0.05865334]
[1718713901040,3.0,3410.8,3408.2,3.109]
[1718713901258,3.547,3411.6,3408.5,1.773]
[1718713901440,3.547,3411.6,3408.8,3.109]
[1718713901441,3.0,3411.5,3408.8,3.109]
[1718713901641,3.0,3411.5,3408.7,2.268]
[1718713901852,0.6547,3411.4,3408.8,0.83544353]
[1718713902059,0.6547,3411.4,3408.8,3.94444353]
[1718713902675,3.0,3411.9,3408.8,3.94444353]
[1718713902965,0.2954,3411.9,3408.8,3.94444353]
[1718713903368,6.109,3412.0,3408.8,3.94444353]
[1718713903591,3.0,3412.0,3409.0,3.109]
[1718713903733,5.8741,3412.3,3409.2,3.109]
[1718713903933,0.2954,3412.2,3409.3,0.60863377]
[1718713904170,3.547,3412.3,3409.4,3.109]
[1718713904344,5.373,3413.1,3409.4,3.109]
[1718713904345,3.547,3413.0,3409.6,3.109]
[1718713904557,3.701,3412.9,3409.8,3.109]
[1718713904876,0.05129774,3412.8,3410.0,3.109]
[1718713905103,0.05129774,3412.8,3410.2,3.109]
[1718713905395,0.05129774,3412.8,3409.7,2.323]
[1718713905396,0.05129774,3412.8,3410.5,2.3395]
[1718713905593,0.05129774,3412.8,3410.6,3.71760695]
[1718713905958,0.05129774,3412.8,3410.7,0.05860696]
[1718713906167,0.05129774,3412.8,3410.8,0.66432403]
[1718713906514,0.05129774,3412.8,3410.9,0.55]
[1718713906948,0.05129774,3412.8,3410.6,0.55]
[1718713907892,0.05129774,3412.8,3409.5,1.41025292]
[1718713907893,6.656,3412.5,3409.5,2.4768]
[1718713908080,6.656,3412.5,3409.6,0.40350907]
[1718713908081,3.0,3412.4,3409.6,0.40350907]
[1718713908274,3.0,3412.4,3409.7,0.05863251]
[1718713908275,3.547,3411.9,3409.7,0.05863251]
[1718713908475,3.109,3411.7,3409.5,2.4768]
[1718713908866,3.3547,3411.8,3409.6,0.05864438]
[1718713908867,3.0,3411.6,3409.6,0.05864438]
[1718713909093,0.99017,3411.6,3409.7,0.25354444]
[1718713909266,0.99017,3411.6,3408.4,3.540174]
[1718713909460,0.99017,3411.6,3408.5,3.109]
[1718713909791,3.0,3411.8,3408.7,3.109]
[1718713909792,0.434487,3411.5,3408.7,3.109]
[1718713910564,3.434487,3411.5,3408.8,3.109]
[1718713910764,6.109,3411.7,3408.5,3.109]
[1718713910970,3.109,3411.5,3408.5,3.109]
[1718713911276,3.109,3411.3,3408.5,3.109]
[1718713911458,3.0,3411.2,3408.6,0.54741]
[1718713912282,6.109,3411.3,3408.6,0.54741]
[1718713912793,6.109,3411.3,3408.4,2.3651]
[1718713912794,3.109,3411.1,3408.4,2.3651]
[1718713912982,3.109,3411.1,3407.5,2.3645]